[Event "Minior-SM 2025"]
[Site "Uppsala, Sweden"]
[Date "2025.07.04"]
[Round "6.4"]
[White "Efimova, Paulina"]
[Black "Sun Aslund, Bruce"]
[Result "0-1"]
[TimeControl "90 min for 40 move + 30 min with an increment of 30 sec starting move 1"]
[WhiteFideId "1772155"]
[BlackFideId "1785010"]
[WhiteElo "1581"]
[BlackElo "1759"]

1. d4 {[%clk 01:30:56]} {[%emt 00:00:03]} Nf6 {[%clk 01:29:00]} {[%emt
00:02:00]} 2. Bf4 {[%clk 01:31:04]} {[%emt 00:00:22]} c5 {[%clk 01:29:25]}
{[%emt 00:00:06]} 3. c3 {[%clk 01:30:30]} {[%emt 00:01:05]} e6 {[%clk
01:29:46]} {[%emt 00:00:09]} 4. Nf3 {[%clk 01:30:11]} {[%emt 00:00:49]} d5
{[%clk 01:29:02]} {[%emt 00:01:14]} 5. e3 {[%clk 01:30:03]} {[%emt 00:00:37]}
Qb6 {[%clk 01:26:44]} {[%emt 00:02:48]} 6. Qc2 {[%clk 01:27:52]} {[%emt
00:02:40]} Nc6 {[%clk 01:24:59]} {[%emt 00:02:17]} 7. Nbd2 {[%clk 01:27:06]}
{[%emt 00:01:16]} Bd7 {[%clk 01:24:28]} {[%emt 00:01:01]} 8. Bd3 {[%clk
01:24:12]} {[%emt 00:03:23]} Rc8 {[%clk 01:23:27]} {[%emt 00:01:31]} 9. Rb1
{[%clk 01:16:05]} {[%emt 00:08:33]} cxd4 {[%clk 01:22:40]} {[%emt 00:01:22]} 10.
exd4 {[%clk 01:07:46]} {[%emt 00:08:48]} Nb4 {[%clk 01:22:40]} {[%emt
00:00:30]} 11. Qd1 {[%clk 01:04:33]} {[%emt 00:03:40]} Nxd3+ {[%clk 01:22:36]}
{[%emt 00:00:38]} 12. Kf1 {[%clk 01:02:52]} {[%emt 00:02:09]} Nxf4 {[%clk
01:22:10]} {[%emt 00:00:58]} 13. Ne5 {[%clk 01:01:02]} {[%emt 00:02:19]} Qb5+
{[%clk 01:16:36]} {[%emt 00:06:04]} 14. c4 {[%clk 00:56:12]} {[%emt 00:05:21]}
dxc4 {[%clk 01:16:57]} {[%emt 00:00:09]} 15. Ndxc4 {[%clk 00:54:50]} {[%emt
00:01:51]} Rxc4 {[%clk 01:16:50]} {[%emt 00:00:37]} 16. Nxc4 {[%clk 00:53:10]}
{[%emt 00:02:10]} Qxc4+ {[%clk 01:17:10]} {[%emt 00:00:11]} 0-1

[Event "Minior-SM 2025"]
[Site "Uppsala, Sweden"]
[Date "2025.07.04"]
[Round "7.1"]
[White "Leon, David"]
[Black "Modig, Ville"]
[Result "1-0"]
[TimeControl "90 min for 40 move + 30 min with an increment of 30 sec starting move 1"]
[WhiteFideId "1785338"]
[BlackFideId "1777858"]
[WhiteElo "1734"]
[BlackElo "1585"]

1. e4 {[%clk 01:30:55]} {[%emt 00:00:03]} e5 {[%clk 01:30:56]} {[%emt
00:00:06]} 2. Nc3 {[%clk 01:31:14]} {[%emt 00:00:10]} Nc6 {[%clk 01:31:19]}
{[%emt 00:00:07]} 3. Bc4 {[%clk 01:31:00]} {[%emt 00:00:44]} Bc5 {[%clk
01:31:37]} {[%emt 00:00:12]} 4. d3 {[%clk 01:29:25]} {[%emt 00:02:05]} d6
{[%clk 01:31:54]} {[%emt 00:00:14]} 5. Na4 {[%clk 01:25:23]} {[%emt 00:04:31]}
Bb6 {[%clk 01:31:38]} {[%emt 00:00:47]} 6. Nxb6 {[%clk 01:24:26]} {[%emt
00:01:26]} axb6 {[%clk 01:31:31]} {[%emt 00:00:38]} 7. f4 {[%clk 01:22:38]}
{[%emt 00:02:17]} Nf6 {[%clk 01:30:58]} {[%emt 00:01:03]} 8. Nf3 {[%clk
01:22:29]} {[%emt 00:00:39]} Be6 {[%clk 01:30:59]} {[%emt 00:00:28]} 9. Bxe6
{[%clk 01:16:55]} {[%emt 00:06:06]} fxe6 {[%clk 01:31:04]} {[%emt 00:00:24]} 10.
fxe5 {[%clk 01:16:50]} {[%emt 00:00:35]} Nxe5 {[%clk 01:30:55]} {[%emt
00:00:39]} 11. Nxe5 {[%clk 01:16:38]} {[%emt 00:00:42]} dxe5 {[%clk 01:31:17]}
{[%emt 00:00:08]} 12. O-O {[%clk 01:16:30]} {[%emt 00:00:38]} O-O {[%clk
01:31:26]} {[%emt 00:00:21]} 13. Be3 {[%clk 01:14:47]} {[%emt 00:02:12]} Qd7
{[%clk 01:28:58]} {[%emt 00:02:59]} 14. h3 {[%clk 01:04:36]} {[%emt 00:10:41]}
Qe8 {[%clk 01:26:21]} {[%emt 00:03:06]} 15. Qd2 {[%clk 01:03:01]} {[%emt
00:02:06]} Rd8 {[%clk 01:25:46]} {[%emt 00:01:01]} 16. Qc3 {[%clk 00:58:11]}
{[%emt 00:05:23]} Nd7 {[%clk 01:23:48]} {[%emt 00:02:27]} 17. Rxf8+ {[%clk
00:56:49]} {[%emt 00:01:53]} Qxf8 {[%clk 01:23:40]} {[%emt 00:00:39]} 18. Qxc7
{[%clk 00:56:07]} {[%emt 00:01:11]} Qe7 {[%clk 01:23:01]} {[%emt 00:01:08]} 19.
Bxb6 {[%clk 00:50:43]} {[%emt 00:05:56]} Re8 {[%clk 01:19:23]} {[%emt
00:04:08]} 20. Be3 {[%clk 00:48:21]} {[%emt 00:02:51]} b5 {[%clk 01:16:54]}
{[%emt 00:02:59]} 21. Bg5 {[%clk 00:44:45]} {[%emt 00:04:06]} Qxg5 {[%clk
01:15:26]} {[%emt 00:01:59]} 22. Qxd7 {[%clk 00:44:56]} {[%emt 00:00:19]} Rf8
{[%clk 01:14:53]} {[%emt 00:01:02]} 23. Qxe6+ {[%clk 00:44:29]} {[%emt
00:00:58]} Kh8 {[%clk 01:14:45]} {[%emt 00:00:37]} 24. Qd6 {[%clk 00:39:43]}
{[%emt 00:05:15]} Qf4 {[%clk 01:13:52]} {[%emt 00:01:25]} 25. Qc5 {[%clk
00:35:05]} {[%emt 00:05:07]} h6 {[%clk 01:13:05]} {[%emt 00:01:18]} 26. b4
{[%clk 00:29:17]} {[%emt 00:06:18]} Rf6 {[%clk 01:11:43]} {[%emt 00:01:51]} 27.
a4 {[%clk 00:28:12]} {[%emt 00:01:36]} Rg6 {[%clk 01:08:50]} {[%emt 00:02:06]}
28. Qf2 {[%clk 00:26:43]} {[%emt 00:03:16]} Qg5 {[%clk 01:08:24]} {[%emt
00:00:56]} 29. a5 {[%clk 00:26:35]} {[%emt 00:00:39]} Rf6 {[%clk 01:07:44]}
{[%emt 00:01:10]} 30. Qe2 {[%clk 00:25:09]} {[%emt 00:01:54]} Rf8 {[%clk
01:06:45]} {[%emt 00:01:29]} 31. c4 {[%clk 00:23:59]} {[%emt 00:01:40]} Qd8
{[%clk 01:05:56]} {[%emt 00:01:20]} 32. Qe3 {[%clk 00:22:56]} {[%emt 00:01:32]}
bxc4 {[%clk 01:04:49]} {[%emt 00:01:38]} 33. dxc4 {[%clk 00:23:06]} {[%emt
00:00:20]} Rf7 {[%clk 01:05:12]} {[%emt 00:00:07]} 34. a6 {[%clk 00:22:34]}
{[%emt 00:01:02]} Rd7 {[%clk 01:05:05]} {[%emt 00:00:38]} 35. a7 {[%clk
00:22:22]} {[%emt 00:00:41]} Qa8 {[%clk 01:04:02]} {[%emt 00:01:33]} 36. Qb6
{[%clk 00:22:22]} {[%emt 00:00:30]} Rxa7 {[%clk 01:03:03]} {[%emt 00:01:30]} 37.
Qxa7 {[%clk 00:22:14]} {[%emt 00:00:38]} Qxe4 {[%clk 01:03:23]} {[%emt
00:00:08]} 38. Qa8+ {[%clk 00:22:34]} {[%emt 00:00:10]} 1-0

[Event "Minior-SM 2025"]
[Site "Uppsala, Sweden"]
[Date "2025.07.04"]
[Round "7.2"]
[White "Andreasson, Leo"]
[Black "Thamarai, Yohan"]
[Result "1-0"]
[TimeControl "90 min for 40 move + 30 min with an increment of 30 sec starting move 1"]
[WhiteFideId "1768980"]
[BlackFideId "1773011"]
[WhiteElo "1636"]
[BlackElo "1761"]

1. c4 {[%clk 01:28:57]} {[%emt 00:02:02]} e5 {[%clk 01:30:45]} {[%emt
00:00:15]} 2. Nc3 {[%clk 01:29:15]} {[%emt 00:00:13]} Nf6 {[%clk 01:31:08]}
{[%emt 00:00:05]} 3. g3 {[%clk 01:29:06]} {[%emt 00:00:40]} d5 {[%clk
01:31:25]} {[%emt 00:00:13]} 4. cxd5 {[%clk 01:24:00]} {[%emt 00:05:36]} Nxd5
{[%clk 01:31:46]} {[%emt 00:00:09]} 5. e4 {[%clk 01:23:10]} {[%emt 00:01:20]}
Nxc3 {[%clk 01:27:03]} {[%emt 00:05:13]} 6. bxc3 {[%clk 01:23:10]} {[%emt
00:00:30]} c5 {[%clk 01:26:53]} {[%emt 00:00:40]} 7. Bg2 {[%clk 01:20:48]}
{[%emt 00:02:52]} Nc6 {[%clk 01:26:31]} {[%emt 00:00:51]} 8. Nf3 {[%clk
01:18:51]} {[%emt 00:02:25]} Be7 {[%clk 01:25:56]} {[%emt 00:01:07]} 9. Bb2
{[%clk 01:16:05]} {[%emt 00:03:17]} Bf6 {[%clk 01:23:35]} {[%emt 00:02:50]} 10.
O-O {[%clk 01:14:14]} {[%emt 00:02:21]} O-O {[%clk 01:23:52]} {[%emt 00:00:14]}
11. Qc2 {[%clk 01:14:17]} {[%emt 00:00:27]} Bg4 {[%clk 01:23:38]} {[%emt
00:00:44]} 12. Rfe1 {[%clk 01:09:01]} {[%emt 00:05:46]} Rc8 {[%clk 01:23:01]}
{[%emt 00:01:06]} 13. h3 {[%clk 01:06:38]} {[%emt 00:02:52]} Bxf3 {[%clk
01:18:57]} {[%emt 00:04:36]} 14. Bxf3 {[%clk 01:06:06]} {[%emt 00:01:01]} Qe7
{[%clk 01:14:12]} {[%emt 00:05:14]} 15. Rab1 {[%clk 00:54:36]} {[%emt
00:12:00]} Rfd8 {[%clk 01:06:22]} {[%emt 00:08:20]} 16. d3 {[%clk 00:51:10]}
{[%emt 00:03:57]} Rc7 {[%clk 01:03:47]} {[%emt 00:03:04]} 17. Ba3 {[%clk
00:46:43]} {[%emt 00:04:59]} b6 {[%clk 01:03:57]} {[%emt 00:00:19]} 18. Bb2
{[%clk 00:36:22]} {[%emt 00:10:51]} Qd7 {[%clk 01:03:55]} {[%emt 00:00:32]} 19.
Red1 {[%clk 00:35:28]} {[%emt 00:01:25]} Qxh3 {[%clk 01:00:45]} {[%emt
00:03:39]} 20. Bg2 {[%clk 00:35:54]} {[%emt 00:00:03]} Qc8 {[%clk 01:01:01]}
{[%emt 00:00:15]} 21. f4 {[%clk 00:33:16]} {[%emt 00:03:08]} Qg4 {[%clk
00:59:33]} {[%emt 00:01:57]} 22. Qf2 {[%clk 00:33:07]} {[%emt 00:00:39]} exf4
{[%clk 00:59:18]} {[%emt 00:00:46]} 23. Qxf4 {[%clk 00:32:44]} {[%emt
00:00:53]} Qxf4 {[%clk 00:59:32]} {[%emt 00:00:16]} 24. gxf4 {[%clk 00:33:10]}
{[%emt 00:00:04]} Rcd7 {[%clk 00:59:38]} {[%emt 00:00:24]} 25. e5 {[%clk
00:33:04]} {[%emt 00:00:36]} Bxe5 {[%clk 00:59:57]} {[%emt 00:00:11]} 26. Bxc6
{[%clk 00:32:39]} {[%emt 00:00:54]} Rd6 {[%clk 01:00:10]} {[%emt 00:00:17]} 27.
fxe5 {[%clk 00:32:13]} {[%emt 00:00:57]} Rxc6 {[%clk 01:00:32]} {[%emt
00:00:08]} 28. d4 {[%clk 00:32:01]} {[%emt 00:00:42]} cxd4 {[%clk 01:00:48]}
{[%emt 00:00:14]} 29. cxd4 {[%clk 00:31:12]} {[%emt 00:01:20]} Rg6+ {[%clk
01:00:47]} {[%emt 00:00:30]} 30. Kf2 {[%clk 00:31:35]} {[%emt 00:00:08]} Kf8
{[%clk 01:00:07]} {[%emt 00:01:09]} 31. Kf3 {[%clk 00:22:27]} {[%emt 00:09:38]}
f5 {[%clk 00:57:21]} {[%emt 00:03:16]} 32. d5 {[%clk 00:21:08]} {[%emt
00:01:49]} Rh6 {[%clk 00:56:53]} {[%emt 00:00:58]} 33. e6 {[%clk 00:18:40]}
{[%emt 00:02:59]} g5 {[%clk 00:56:40]} {[%emt 00:00:42]} 34. Rbc1 {[%clk
00:13:39]} {[%emt 00:05:31]} Rh3+ {[%clk 00:56:43]} {[%emt 00:00:27]} 35. Kg2
{[%clk 00:13:57]} {[%emt 00:00:11]} g4 {[%clk 00:55:51]} {[%emt 00:01:22]} 36.
Rc7 {[%clk 00:14:16]} {[%emt 00:00:11]} Re3 {[%clk 00:54:37]} {[%emt 00:01:45]}
37. e7+ {[%clk 00:09:38]} {[%emt 00:05:08]} 1-0

[Event "Minior-SM 2025"]
[Site "Uppsala, Sweden"]
[Date "2025.07.04"]
[Round "7.3"]
[White "Dahlin, Emil"]
[Black "Lang Sohl, Benjamin"]
[Result "1/2-1/2"]
[TimeControl "90 min for 40 move + 30 min with an increment of 30 sec starting move 1"]
[WhiteFideId "1771035"]
[BlackFideId "1790250"]
[WhiteElo "1657"]
[BlackElo "1552"]

1. e4 {[%clk 01:30:58]} {[%emt 00:00:01]} e5 {[%clk 01:30:52]} {[%emt
00:00:09]} 2. Nf3 {[%clk 01:31:23]} {[%emt 00:00:04]} Nc6 {[%clk 01:31:09]}
{[%emt 00:00:13]} 3. Bc4 {[%clk 01:31:47]} {[%emt 00:00:05]} Nf6 {[%clk
01:31:33]} {[%emt 00:00:06]} 4. d3 {[%clk 01:32:04]} {[%emt 00:00:14]} Bc5
{[%clk 01:31:52]} {[%emt 00:00:11]} 5. c3 {[%clk 01:32:24]} {[%emt 00:00:10]}
d6 {[%clk 01:31:55]} {[%emt 00:00:27]} 6. O-O {[%clk 01:32:12]} {[%emt
00:00:42]} O-O {[%clk 01:31:54]} {[%emt 00:00:31]} 7. Nbd2 {[%clk 01:32:10]}
{[%emt 00:00:32]} a5 {[%clk 01:31:52]} {[%emt 00:00:32]} 8. Re1 {[%clk
01:29:36]} {[%emt 00:03:03]} Be6 {[%clk 01:30:57]} {[%emt 00:01:24]} 9. Bb3
{[%clk 01:20:30]} {[%emt 00:09:39]} Ne7 {[%clk 01:29:12]} {[%emt 00:02:14]} 10.
Nf1 {[%clk 01:19:16]} {[%emt 00:01:43]} Ng6 {[%clk 01:25:47]} {[%emt 00:03:56]}
11. Ng3 {[%clk 01:17:30]} {[%emt 00:02:15]} Re8 {[%clk 01:20:07]} {[%emt
00:06:08]} 12. d4 {[%clk 01:13:08]} {[%emt 00:04:56]} Bb6 {[%clk 01:19:04]}
{[%emt 00:01:32]} 13. Bxe6 {[%clk 01:07:33]} {[%emt 00:06:05]} Rxe6 {[%clk
01:15:15]} {[%emt 00:04:19]} 14. d5 {[%clk 01:05:45]} {[%emt 00:02:18]} Re8
{[%clk 01:14:15]} {[%emt 00:01:29]} 15. Be3 {[%clk 01:03:35]} {[%emt 00:02:40]}
c6 {[%clk 01:05:46]} {[%emt 00:08:59]} 16. dxc6 {[%clk 01:00:31]} {[%emt
00:03:35]} Bxe3 {[%clk 01:05:08]} {[%emt 00:01:08]} 17. Rxe3 {[%clk 00:54:58]}
{[%emt 00:06:03]} bxc6 {[%clk 01:02:29]} {[%emt 00:03:09]} 18. Nf5 {[%clk
00:47:56]} {[%emt 00:07:32]} d5 {[%clk 01:00:09]} {[%emt 00:02:50]} 19. exd5
{[%clk 00:45:00]} {[%emt 00:03:26]} cxd5 {[%clk 00:56:55]} {[%emt 00:03:44]} 20.
Re1 {[%clk 00:38:53]} {[%emt 00:06:37]} Rb8 {[%clk 00:51:12]} {[%emt 00:06:13]}
21. Qc2 {[%clk 00:36:43]} {[%emt 00:02:39]} Qb6 {[%clk 00:45:55]} {[%emt
00:05:47]} 22. Rab1 {[%clk 00:34:34]} {[%emt 00:02:40]} Rbc8 {[%clk 00:39:51]}
{[%emt 00:06:34]} 23. Qd1 {[%clk 00:31:04]} {[%emt 00:04:00]} Rcd8 {[%clk
00:36:43]} {[%emt 00:03:39]} 24. N5h4 {[%clk 00:24:41]} {[%emt 00:06:52]}
1/2-1/2

[Event "Minior-SM 2025"]
[Site "Uppsala, Sweden"]
[Date "2025.07.04"]
[Round "7.4"]
[White "Sun Aslund, Bruce"]
[Black "Nivstrand Wikdahl, Sion"]
[Result "1/2-1/2"]
[TimeControl "90 min for 40 move + 30 min with an increment of 30 sec starting move 1"]
[WhiteFideId "1785010"]
[BlackFideId "1781537"]
[WhiteElo "1759"]
[BlackElo "1604"]

1. e4 {[%clk 01:30:58]} {[%emt 00:00:01]} c5 {[%clk 01:29:50]} {[%emt
00:01:11]} 2. c4 {[%clk 01:31:09]} {[%emt 00:00:19]} Nc6 {[%clk 01:30:01]}
{[%emt 00:00:20]} 3. Nc3 {[%clk 01:31:27]} {[%emt 00:00:12]} g6 {[%clk
01:29:56]} {[%emt 00:00:34]} 4. g3 {[%clk 01:31:50]} {[%emt 00:00:07]} Bg7
{[%clk 01:29:50]} {[%emt 00:00:36]} 5. Bg2 {[%clk 01:32:09]} {[%emt 00:00:11]}
d6 {[%clk 01:28:32]} {[%emt 00:01:49]} 6. d3 {[%clk 01:32:21]} {[%emt
00:00:17]} e5 {[%clk 01:26:56]} {[%emt 00:02:06]} 7. Be3 {[%clk 01:30:23]}
{[%emt 00:02:28]} Be6 {[%clk 01:25:16]} {[%emt 00:02:11]} 8. Nge2 {[%clk
01:30:35]} {[%emt 00:00:17]} Nge7 {[%clk 01:24:22]} {[%emt 00:01:24]} 9. O-O
{[%clk 01:29:06]} {[%emt 00:01:58]} O-O {[%clk 01:20:43]} {[%emt 00:04:10]} 10.
a3 {[%clk 01:24:29]} {[%emt 00:05:07]} a5 {[%clk 01:12:05]} {[%emt 00:09:08]}
11. f4 {[%clk 01:20:45]} {[%emt 00:04:14]} f5 {[%clk 01:05:13]} {[%emt
00:07:22]} 12. fxe5 {[%clk 00:48:20]} {[%emt 00:32:56]} Bxe5 {[%clk 01:00:50]}
{[%emt 00:04:52]} 13. Nf4 {[%clk 00:45:01]} {[%emt 00:03:50]} Qd7 {[%clk
00:50:45]} {[%emt 00:10:35]} 14. Nxe6 {[%clk 00:28:43]} {[%emt 00:16:47]} Qxe6
{[%clk 00:49:39]} {[%emt 00:01:36]} 15. Bh6 {[%clk 00:25:32]} {[%emt 00:03:40]}
Bg7 {[%clk 00:45:22]} {[%emt 00:04:48]} 16. Bxg7 {[%clk 00:23:20]} {[%emt
00:02:42]} Kxg7 {[%clk 00:45:05]} {[%emt 00:00:48]} 17. Nd5 {[%clk 00:23:36]}
{[%emt 00:00:13]} Qe5 {[%clk 00:37:37]} {[%emt 00:07:57]} 18. Rb1 {[%clk
00:19:17]} {[%emt 00:04:50]} Nxd5 {[%clk 00:36:39]} {[%emt 00:01:27]} 19. exd5
{[%clk 00:18:49]} {[%emt 00:00:58]} Qd4+ {[%clk 00:34:46]} {[%emt 00:02:23]} 20.
Kh1 {[%clk 00:18:20]} {[%emt 00:00:59]} Ne5 {[%clk 00:32:34]} {[%emt 00:02:42]}
21. Re1 {[%clk 00:16:55]} {[%emt 00:01:55]} Nxd3 {[%clk 00:28:14]} {[%emt
00:04:51]} 22. Re7+ {[%clk 00:15:10]} {[%emt 00:02:15]} Rf7 {[%clk 00:25:09]}
{[%emt 00:03:35]} 23. Rxf7+ {[%clk 00:14:10]} {[%emt 00:01:31]} Kxf7 {[%clk
00:25:23]} {[%emt 00:00:16]} 24. Qc2 {[%clk 00:14:36]} {[%emt 00:00:03]} Nf2+
{[%clk 00:17:20]} {[%emt 00:08:34]} 25. Kg1 {[%clk 00:14:28]} {[%emt 00:00:38]}
Ng4+ {[%clk 00:17:10]} {[%emt 00:00:40]} 26. Kh1 {[%clk 00:13:48]} {[%emt
00:01:10]} Qf2 {[%clk 00:15:02]} {[%emt 00:02:37]} 27. Qxf2 {[%clk 00:12:46]}
{[%emt 00:01:34]} Nxf2+ {[%clk 00:14:59]} {[%emt 00:00:32]} 28. Kg1 {[%clk
00:13:09]} {[%emt 00:00:07]} Ng4 {[%clk 00:14:16]} {[%emt 00:01:13]} 29. Rc1
{[%clk 00:12:25]} {[%emt 00:01:13]} Re8 {[%clk 00:13:46]} {[%emt 00:01:00]} 30.
h3 {[%clk 00:11:09]} {[%emt 00:01:47]} Ne5 {[%clk 00:13:09]} {[%emt 00:01:07]}
31. Rc3 {[%clk 00:10:45]} {[%emt 00:00:54]} Kf6 {[%clk 00:11:19]} {[%emt
00:02:20]} 32. Bf1 {[%clk 00:08:47]} {[%emt 00:02:26]} Nd7 {[%clk 00:10:10]}
{[%emt 00:01:40]} 33. Kf2 {[%clk 00:08:11]} {[%emt 00:01:06]} g5 {[%clk
00:08:50]} {[%emt 00:01:51]} 34. Rf3 {[%clk 00:06:16]} {[%emt 00:02:24]} Re5
{[%clk 00:06:50]} {[%emt 00:02:31]} 35. Bd3 {[%clk 00:05:31]} {[%emt 00:01:14]}
h5 {[%clk 00:06:00]} {[%emt 00:01:20]} 36. g4 {[%clk 00:04:24]} {[%emt
00:01:37]} hxg4 {[%clk 00:05:35]} {[%emt 00:00:56]} 37. hxg4 {[%clk 00:04:45]}
{[%emt 00:00:08]} f4 {[%clk 00:05:53]} {[%emt 00:00:13]} 38. Rh3 {[%clk
00:05:09]} {[%emt 00:00:06]} Nf8 {[%clk 00:03:15]} {[%emt 00:03:06]} 39. Bf5
{[%clk 00:04:26]} {[%emt 00:01:14]} Re7 {[%clk 00:02:25]} {[%emt 00:01:21]} 40.
Rh6+ {[%clk 00:02:08]} {[%emt 00:02:46]} Ke5 {[%clk 00:01:59]} {[%emt
00:00:57]} 41. Rh5 {[%emt 00:01:17]} 1/2-1/2

[Event "Minior-SM 2025"]
[Site "Uppsala, Sweden"]
[Date "2025.07.05"]
[Round "8.1"]
[White "Leon, David"]
[Black "Dahlin, Emil"]
[Result "0-1"]
[TimeControl "90 min for 40 move + 30 min with an increment of 30 sec starting move 1"]
[WhiteFideId "1785338"]
[BlackFideId "1771035"]
[WhiteElo "1734"]
[BlackElo "1657"]

1. e4 {[%clk 01:30:59]} e5 {[%clk 01:30:56]} {[%emt 00:00:04]} 2. Nc3 {[%clk
01:31:22]} {[%emt 00:00:06]} Nf6 {[%clk 01:31:17]} {[%emt 00:00:10]} 3. f4
{[%clk 01:31:29]} {[%emt 00:00:23]} d5 {[%clk 01:31:32]} {[%emt 00:00:14]} 4.
exd5 {[%clk 01:29:32]} {[%emt 00:02:28]} Nxd5 {[%clk 01:20:06]} {[%emt
00:11:56]} 5. Nxd5 {[%clk 01:20:57]} {[%emt 00:09:05]} Qxd5 {[%clk 01:19:28]}
{[%emt 00:01:06]} 6. fxe5 {[%clk 01:20:04]} {[%emt 00:01:24]} Qxe5+ {[%clk
01:16:54]} {[%emt 00:03:05]} 7. Qe2 {[%clk 01:20:13]} {[%emt 00:00:21]} Qxe2+
{[%clk 01:15:50]} {[%emt 00:01:34]} 8. Bxe2 {[%clk 01:20:02]} {[%emt 00:00:40]}
Bc5 {[%clk 01:14:44]} {[%emt 00:01:37]} 9. Nf3 {[%clk 01:17:44]} {[%emt
00:02:48]} Nc6 {[%clk 01:12:51]} {[%emt 00:02:22]} 10. c3 {[%clk 01:13:27]}
{[%emt 00:04:47]} Bg4 {[%clk 01:09:23]} {[%emt 00:03:59]} 11. d4 {[%clk
01:07:17]} {[%emt 00:06:40]} Bd6 {[%clk 01:06:35]} {[%emt 00:03:17]} 12. h3
{[%clk 01:03:54]} {[%emt 00:03:54]} Bg3+ {[%clk 01:04:25]} {[%emt 00:02:39]} 13.
Kf1 {[%clk 01:00:13]} {[%emt 00:04:11]} Bf5 {[%clk 01:02:27]} {[%emt 00:02:28]}
14. Be3 {[%clk 00:55:54]} {[%emt 00:04:48]} O-O-O {[%clk 00:55:20]} {[%emt
00:07:38]} 15. Bf2 {[%clk 00:54:50]} {[%emt 00:01:33]} Bxf2 {[%clk 00:53:49]}
{[%emt 00:02:02]} 16. Kxf2 {[%clk 00:55:06]} {[%emt 00:00:15]} Rhe8 {[%clk
00:52:22]} {[%emt 00:01:56]} 17. Bb5 {[%clk 00:41:01]} {[%emt 00:14:36]} f6
{[%clk 00:46:38]} {[%emt 00:06:14]} 18. Bxc6 {[%clk 00:37:38]} {[%emt
00:03:53]} bxc6 {[%clk 00:46:55]} {[%emt 00:00:12]} 19. Rhe1 {[%clk 00:36:23]}
{[%emt 00:01:45]} Kb7 {[%clk 00:44:52]} {[%emt 00:02:33]} 20. Nd2 {[%clk
00:33:29]} {[%emt 00:03:23]} Bg6 {[%clk 00:36:10]} {[%emt 00:09:13]} 21. Nb3
{[%clk 00:32:28]} {[%emt 00:01:32]} Bf7 {[%clk 00:28:21]} {[%emt 00:08:18]} 22.
Nc5+ {[%clk 00:31:49]} {[%emt 00:01:10]} Kc8 {[%clk 00:27:34]} {[%emt
00:01:17]} 23. a3 {[%clk 00:31:20]} {[%emt 00:00:59]} Rxe1 {[%clk 00:24:57]}
{[%emt 00:03:06]} 24. Rxe1 {[%clk 00:31:32]} {[%emt 00:00:18]} Re8 {[%clk
00:24:49]} {[%emt 00:00:38]} 25. Rxe8+ {[%clk 00:25:36]} {[%emt 00:06:27]} Bxe8
{[%clk 00:25:05]} {[%emt 00:00:14]} 26. Ne6 {[%clk 00:25:06]} {[%emt 00:01:00]}
g6 {[%clk 00:24:48]} {[%emt 00:00:46]} 27. Nf8 {[%clk 00:18:36]} {[%emt
00:07:00]} h6 {[%clk 00:24:42]} {[%emt 00:00:36]} 28. Nh7 {[%clk 00:15:28]}
{[%emt 00:03:38]} f5 {[%clk 00:24:06]} {[%emt 00:01:06]} 29. Nf6 {[%clk
00:15:18]} {[%emt 00:00:40]} Bf7 {[%clk 00:20:03]} {[%emt 00:04:32]} 30. Ke3
{[%clk 00:12:03]} {[%emt 00:03:45]} g5 {[%clk 00:16:18]} {[%emt 00:04:15]} 31.
h4 {[%clk 00:10:56]} {[%emt 00:01:38]} Bg6 {[%clk 00:12:06]} {[%emt 00:04:41]}
32. hxg5 {[%clk 00:09:38]} {[%emt 00:01:49]} hxg5 {[%clk 00:12:26]} {[%emt
00:00:11]} 33. d5 {[%clk 00:08:03]} {[%emt 00:02:05]} cxd5 {[%clk 00:10:19]}
{[%emt 00:02:36]} 34. Nxd5 {[%clk 00:08:13]} {[%emt 00:00:20]} Kd7 {[%clk
00:09:58]} {[%emt 00:00:51]} 35. Nb4 {[%clk 00:07:09]} {[%emt 00:01:34]} Kd6
{[%clk 00:08:43]} {[%emt 00:01:45]} 36. Kf3 {[%clk 00:05:44]} {[%emt 00:01:55]}
Bh5+ {[%clk 00:07:16]} {[%emt 00:01:57]} 37. Ke3 {[%clk 00:05:02]} {[%emt
00:01:11]} f4+ {[%clk 00:06:55]} {[%emt 00:00:52]} 38. Ke4 {[%clk 00:05:07]}
{[%emt 00:00:25]} Bg6+ {[%clk 00:06:51]} {[%emt 00:00:34]} 39. Kf3 {[%clk
00:05:07]} {[%emt 00:00:29]} c5 {[%clk 00:05:54]} {[%emt 00:01:28]} 40. Na2
{[%clk 00:04:49]} {[%emt 00:00:48]} Bf5 {[%clk 00:04:09]} {[%emt 00:02:15]} 41.
b4 {[%clk 00:03:01]} {[%emt 00:02:18]} Ke5 {[%clk 00:29:34]} {[%emt 00:05:05]}
42. g3 {[%clk 00:18:03]} {[%emt 00:15:28]} g4+ {[%clk 00:25:51]} {[%emt
00:04:13]} 43. Kf2 {[%clk 00:18:05]} {[%emt 00:00:28]} f3 {[%clk 00:25:54]}
{[%emt 00:00:27]} 44. Ke3 {[%clk 00:15:34]} {[%emt 00:03:01]} Kd5 {[%clk
00:23:49]} {[%emt 00:02:35]} 45. Nc1 {[%clk 00:11:25]} {[%emt 00:04:39]} cxb4
{[%clk 00:20:57]} {[%emt 00:03:22]} 46. axb4 {[%clk 00:09:53]} {[%emt
00:02:02]} Kc4 {[%clk 00:20:18]} {[%emt 00:01:09]} 47. Kd2 {[%clk 00:09:09]}
{[%emt 00:01:14]} Bb1 {[%clk 00:19:51]} {[%emt 00:00:56]} 0-1